Service area,Service sub division,TVBC Service,Expense type,Detailed expense type,TVBC account code,Date Paid,Transaction Reference,Nett Value,Supplier Name
Environmental & Regulatory,Regulatory Services,Estates and Economic Development ,Premises related Expenditure,Cleaning and domestic supplies,Contract Cleaning - Non Estates,07/04/2016,171169,-3285.23,Friends Life Company Ltd
"Highways, Roads & Transport",Parking Services,Plan Pol & Transport,Supplies & Services,Services,Professional Fees,07/04/2016,171169,-8447.74,Friends Life Company Ltd
Environmental & Regulatory,Regulatory Services,Estates and Economic Development ,Premises related Expenditure,Cleaning and domestic supplies,Contract Cleaning - Non Estates,07/04/2016,171173,-2834.96,Friends Life Company Ltd
"Highways, Roads & Transport",Parking Services,Plan Pol & Transport,Supplies & Services,Services,Professional Fees,07/04/2016,171173,-7289.88,Friends Life Company Ltd
Central Services to the Public,Management & Support Services,Environmental,Supplies & Services,"Printing, Stationery & General Office Expenses",Postage Costs,28/04/2016,181731,-1492.75,Royal Mail
Central Services to the Public,Management & Support Services,Revenues,Supplies & Services,Communications & Computing,Computer Software,28/04/2016,178764,-703.28,Northgate Public Services Uk Ltd
"Highways, Roads & Transport",Parking Services,Plan Pol & Transport,Supplies & Services,"Printing, Stationery & General Office Expenses",External Printing,14/04/2016,176581,-465,Paperwork (Uk) Ltd
Environmental & Regulatory,Regulatory Services,Estates and Economic Development ,Premises related Expenditure,Water Services,Water And Sewerage Charges,21/04/2016,181387,-505.77,Southern Water
Cultural & Related,Open Spaces,Plan Pol & Transport,Third Party Payments,Private contractors,Main Contractor Costs,21/04/2016,180187,-420.38,Marshalls Street Furniture
Planning & Development,Economic Development,Estates and Economic Development ,Supplies & Services,Grants & Subscriptions,Grants,13/04/2016,180645,500,Inz.Pired Ltd
Planning & Development,Economic Development,Estates and Economic Development ,Supplies & Services,Grants & Subscriptions,Grants,06/04/2016,180131,500,Personal data - Data Protection Act 1998
Planning & Development,Community Development,Community and Leisure ,Supplies & Services,Grants & Subscriptions,Grants,07/04/2016,180177,500,Test Valley Cab
Planning & Development,Community Development,Community and Leisure ,Supplies & Services,Grants & Subscriptions,Grants,20/04/2016,181278,500,Knightwood Primary School
Central Services,Corporate & Democratic Core,Corporate & Democratic,Supplies & Services,Services,Legal Fees,13/04/2016,180644,500,The Information Commissioner
Planning & Development,Economic Development,Estates and Economic Development ,Supplies & Services,Grants & Subscriptions,Grants,13/04/2016,180653,500,Beauty By Gemma
Environmental & Regulatory,Regulatory Services,Estates and Economic Development ,Premises related Expenditure,Water Services,Water And Sewerage Charges,21/04/2016,181060,504.83,Southern Water
Central Services to the Public,Management & Support Services,Revenues,Employees,Indirect Employee Expenses,Temporary Staff,14/04/2016,180616,422.4,Personnel Selection
Planning & Development,Development Control,Planning & Building,Supplies & Services,Services,Training Courses,21/04/2016,181244,424,Solace Enterprises Ltd
Central Services to the Public,Management & Support Services,Estates and Economic Development ,Supplies & Services,Services,Training Courses,28/04/2016,181438,425,Top Height Training Ltd
Central Services to the Public,Management & Support Services,Estates and Economic Development ,Supplies & Services,Services,Training Courses,28/04/2016,181439,425,Top Height Training Ltd
"Highways, Roads & Transport",Highways and roads - maintenance,Plan Pol & Transport,Premises related Expenditure,Repairs Alterations & Maintenance of Buildings,Highways Repairs,28/04/2016,181678,512.5,Kicking Horse Limited
Cultural & Related,Open Spaces,Environmental,Supplies & Services,Communications & Computing,Mobile Telephone Charges,28/04/2016,181306,135.63,Vodafone Limited
Environmental & Regulatory,Street Cleansing (not chargeable to Highways),Environmental,Supplies & Services,Communications & Computing,Mobile Telephone Charges,28/04/2016,181306,145.82,Vodafone Limited
Environmental & Regulatory,Waste management,Environmental,Supplies & Services,Communications & Computing,Mobile Telephone Charges,28/04/2016,181306,90.11,Vodafone Limited
Central Services to the Public,Management & Support Services,Environmental,Supplies & Services,Communications & Computing,Mobile Telephone Charges,28/04/2016,181306,25.84,Vodafone Limited
Central Services to the Public,Management & Support Services,Environmental,Supplies & Services,Communications & Computing,Mobile Telephone Charges,28/04/2016,181306,29.76,Vodafone Limited
Central Services to the Public,Management & Support Services,Estates and Economic Development ,Supplies & Services,Miscellaneous Expenses,Waste Collection,14/04/2016,180441,301.5,Suez Recycling And Recovery Uk Ltd
Cultural & Related,Culture & Heritage,Estates and Economic Development ,Supplies & Services,Miscellaneous Expenses,Waste Collection,14/04/2016,180441,126.85,Suez Recycling And Recovery Uk Ltd
Cultural & Related,Culture & Heritage,Estates and Economic Development ,Premises related Expenditure,Energy Costs,Gas,21/04/2016,181082,428.68,Total Gas & Power Ltd
Central Services to the Public,Management & Support Services,Legal & Democratic,Supplies & Services,Services,Training Courses,14/04/2016,177736,430,Llg Legal Training
Planning & Development,Planning Policy,Plan Pol & Transport,Supplies & Services,Services,Professional Fees,21/04/2016,180731,439.2,Newsquest Media Group Ltd
Central Services to the Public,Local Tax Collection,Revenues,Supplies & Services,Services,Professional Fees,14/04/2016,180633,75,Ross & Roberts
Central Services to the Public,Management & Support Services,HR Services,Employees,Indirect Employee Expenses,Temporary Staff,28/04/2016,181704,442,Hays Specialist Recruitment
"Highways, Roads & Transport",Parking Services,Plan Pol & Transport,Supplies & Services,"Printing, Stationery & General Office Expenses",External Printing,14/04/2016,177935,442.5,Paperwork (Uk) Ltd
"Highways, Roads & Transport",Highways and roads - maintenance,Plan Pol & Transport,Supplies & Services,"Printing, Stationery & General Office Expenses",Photocopying Costs,14/04/2016,179171,444.54,Ricoh Uk Ltd
Environmental & Regulatory,Regulatory Services,Housing and Environmental Health ,Supplies & Services,Grants and subscriptions,Capital Grants,21/04/2016,181422,547.1,S & J Building Services (Uk) Ltd
Cultural & Related,Open Spaces,Environmental,Transport Related Expenditure,Direct Transport Costs,External Garages,20/04/2016,181296,210,Bodyshop24
Cultural & Related,Open Spaces,Environmental,Transport Related Expenditure,Direct Transport Costs,Repair Materials,20/04/2016,181296,247,Bodyshop24
"Highways, Roads & Transport",Parking Services,Plan Pol & Transport,Supplies & Services,"Printing, Stationery & General Office Expenses",External Printing,14/04/2016,179016,460.2,Paperwork (Uk) Ltd
Central Services to the Public,Management & Support Services,Finance,Employees,Indirect Employee Expenses,Agency Staff - Waged Posts,07/04/2016,180057,469.26,Butler Rose
Central Services to the Public,Management & Support Services,Finance,Employees,Indirect Employee Expenses,Agency Staff - Waged Posts,21/04/2016,181260,469.26,Butler Rose
Central Services to the Public,Management & Support Services,Revenues,Employees,Indirect Employee Expenses,Temporary Staff,21/04/2016,181130,474,Personnel Selection
Central Services to the Public,Management & Support Services,Revenues,Employees,Indirect Employee Expenses,Temporary Staff,28/04/2016,181881,474,Personnel Selection
Housing Services,"Housing strategy, advice and enabling",Housing and Environmental Health ,Supplies & Services,Grants & Subscriptions,Grants,14/04/2016,179753,576.21,Community Action Hampshire
Cultural & Related,Culture & Heritage,Community and Leisure ,Supplies & Services,"Equipment, Furniture & Materials",Purchase Equip + Materials,28/04/2016,181431,492.12,Flint Hire & Supply Ltd
Cultural & Related,Culture & Heritage,Estates and Economic Development ,Premises related Expenditure,Energy Costs,Gas,21/04/2016,181086,492.35,Total Gas & Power Ltd
Cultural & Related,Recreation & Sport,Community and Leisure ,Premises related Expenditure,Repairs Alterations & Maintenance of Buildings,Building Maint - Non Estates,21/04/2016,181106,496.87,Btu Installation & Maintenance Ltd
Central Services to the Public,Management & Support Services,Revenues,Employees,Indirect Employee Expenses,Temporary Staff,21/04/2016,181071,499.84,Personnel Selection
Cultural & Related,Recreation & Sport,Community and Leisure ,Third Party Payments,Other Establishments,ALC Management Contract-TVL,14/04/2016,180206,500,Valley Leisure Ltd
Cultural & Related,Open Spaces,Community and Leisure ,Supplies & Services,"Equipment, Furniture & Materials",Purchase Equip + Materials,21/04/2016,181236,500,Evergreen Rabbit Control
Central Services to the Public,Management & Support Services,IT,Supplies & Services,Communications & Computing,Software Maintenance,28/04/2016,181677,500,Winchester City Council
Cultural & Related,Culture & Heritage,Community and Leisure ,Supplies & Services,Services,Project Consultancy - Policy,07/04/2016,180062,600,Personal data - Data Protection Act 1998
Cultural & Related,Open Spaces,Environmental,Transport Related Expenditure,Direct Transport Costs,Repair Materials,14/04/2016,180425,275.79,Multi Service Centre
Central Services to the Public,Management & Support Services,Environmental,Transport Related Expenditure,Direct Transport Costs,External Garages,14/04/2016,180425,225,Multi Service Centre
Central Services to the Public,Management & Support Services,Revenues,Employees,Indirect Employee Expenses,Temporary Staff,21/04/2016,181072,506.88,Personnel Selection
Cultural & Related,Recreation & Sport,Community and Leisure ,Premises related Expenditure,Repairs Alterations & Maintenance of Buildings,Building Maint - Non Estates,21/04/2016,181053,507.1,Btu Installation & Maintenance Ltd
"Highways, Roads & Transport",Parking Services,Plan Pol & Transport,Third Party Payments,Private contractors,Main Contractor Costs,28/04/2016,181235,510,Landford Trees
Central Services to the Public,Management & Support Services,Estates and Economic Development ,Third Party Payments,Other Establishments,Private Contractors,21/04/2016,181052,511.25,Btu Installation & Maintenance Ltd
External Trading Accounts,Business Parks,Estates and Economic Development ,Supplies & Services,Services,Removal Fees,07/04/2016,179968,515,Pickfords Move Management Ltd
Central Services to the Public,Management & Support Services,Estates and Economic Development ,Third Party Payments,Other Establishments,Private Contractors,14/04/2016,180498,515.54,Andover Community Services Ltd
Central Services to the Public,Management & Support Services,Environmental,Supplies & Services,"Clothes, Uniforms & Laundry",Clothing + Uniforms,21/04/2016,181231,516.73,Arco Ltd
Planning & Development,Development Control,Planning & Building,Employees,Indirect Employee Expenses,Temporary Staff,21/04/2016,181257,518.55,Oyster Partnership
Central Services to the Public,Management & Support Services,Legal & Democratic,Employees,Indirect Employee Expenses,Agency Staff - Waged Posts,14/04/2016,180471,520,Venn Group Ltd
Planning & Development,Community Development,Community and Leisure ,Supplies & Services,Grants & Subscriptions,Grants,21/04/2016,181395,625,Chilbolton Parish Council
External Trading Accounts,Business Parks,Estates and Economic Development ,Supplies & Services,Communications & Computing,Land Line Telephone Charges,07/04/2016,180060,28.22,Virgin Media Payments Ltd
Cultural & Related,Culture & Heritage,Estates and Economic Development ,Supplies & Services,Communications & Computing,Land Line Telephone Charges,07/04/2016,180060,39.66,Virgin Media Payments Ltd
Cultural & Related,Culture & Heritage,Estates and Economic Development ,Supplies & Services,Communications & Computing,Land Line Telephone Charges,07/04/2016,180060,39.05,Virgin Media Payments Ltd
Central Services to the Public,Management & Support Services,IT,Supplies & Services,Communications & Computing,Communication Links,07/04/2016,180060,26,Virgin Media Payments Ltd
Central Services to the Public,Management & Support Services,IT,Supplies & Services,Communications & Computing,Communication Links,07/04/2016,180060,67,Virgin Media Payments Ltd
Cultural & Related,Recreation & Sport,Community and Leisure ,Supplies & Services,Communications & Computing,Land Line Telephone Charges,07/04/2016,180060,26,Virgin Media Payments Ltd
Cultural & Related,Recreation & Sport,Community and Leisure ,Supplies & Services,Communications & Computing,Land Line Telephone Charges,07/04/2016,180060,13.14,Virgin Media Payments Ltd
Cultural & Related,Recreation & Sport,Community and Leisure ,Supplies & Services,Communications & Computing,Land Line Telephone Charges,07/04/2016,180060,13,Virgin Media Payments Ltd
Cultural & Related,Culture & Heritage,Community and Leisure ,Supplies & Services,Communications & Computing,Communication Links,07/04/2016,180060,74.28,Virgin Media Payments Ltd
"Highways, Roads & Transport",Parking Services,Plan Pol & Transport,Supplies & Services,Communications & Computing,Alarm Lines,07/04/2016,180060,37,Virgin Media Payments Ltd
Central Services to the Public,Management & Support Services,Environmental,Supplies & Services,Communications & Computing,Land Line Telephone Charges,07/04/2016,180060,67.65,Virgin Media Payments Ltd
Central Services to the Public,Emergency Planning,Corporate & Democratic,Supplies & Services,Communications & Computing,Land Line Telephone Charges,07/04/2016,180060,91,Virgin Media Payments Ltd
Cultural & Related,Culture & Heritage,Community and Leisure ,Premises related Expenditure,Repairs Alterations & Maintenance of Buildings,Building Maint - Non Estates,21/04/2016,181054,531.3,Btu Installation & Maintenance Ltd
External Trading Accounts,Business Parks,Estates and Economic Development ,Supplies & Services,Communications & Computing,Land Line Telephone Charges,07/04/2016,180061,28.11,Virgin Media Payments Ltd
Cultural & Related,Culture & Heritage,Estates and Economic Development ,Supplies & Services,Communications & Computing,Land Line Telephone Charges,07/04/2016,180061,39.75,Virgin Media Payments Ltd
Cultural & Related,Culture & Heritage,Estates and Economic Development ,Supplies & Services,Communications & Computing,Land Line Telephone Charges,07/04/2016,180061,39.06,Virgin Media Payments Ltd
Central Services to the Public,Management & Support Services,IT,Supplies & Services,Communications & Computing,Communication Links,07/04/2016,180061,26,Virgin Media Payments Ltd
Central Services to the Public,Management & Support Services,IT,Supplies & Services,Communications & Computing,Communication Links,07/04/2016,180061,67,Virgin Media Payments Ltd
Cultural & Related,Recreation & Sport,Community and Leisure ,Supplies & Services,Communications & Computing,Land Line Telephone Charges,07/04/2016,180061,26,Virgin Media Payments Ltd
Cultural & Related,Recreation & Sport,Community and Leisure ,Supplies & Services,Communications & Computing,Land Line Telephone Charges,07/04/2016,180061,13.41,Virgin Media Payments Ltd
Cultural & Related,Recreation & Sport,Community and Leisure ,Supplies & Services,Communications & Computing,Land Line Telephone Charges,07/04/2016,180061,13,Virgin Media Payments Ltd
Cultural & Related,Culture & Heritage,Community and Leisure ,Supplies & Services,Communications & Computing,Communication Links,07/04/2016,180061,87.35,Virgin Media Payments Ltd
"Highways, Roads & Transport",Parking Services,Plan Pol & Transport,Supplies & Services,Communications & Computing,Alarm Lines,07/04/2016,180061,37,Virgin Media Payments Ltd
Central Services to the Public,Management & Support Services,Environmental,Supplies & Services,Communications & Computing,Land Line Telephone Charges,07/04/2016,180061,71.78,Virgin Media Payments Ltd
Central Services to the Public,Emergency Planning,Corporate & Democratic,Supplies & Services,Communications & Computing,Land Line Telephone Charges,07/04/2016,180061,91,Virgin Media Payments Ltd
Cultural & Related,Open Spaces,Community and Leisure ,Premises related Expenditure,Grounds Maintenance Costs,Gm - Additional Works,21/04/2016,181237,539.67,Landford Trees
Environmental & Regulatory,Regulatory Services,Housing and Environmental Health ,Supplies & Services,Grants and subscriptions,Capital Grants,28/04/2016,182035,650,Andover Glass Works Ltd
Environmental & Regulatory,Street Cleansing (not chargeable to Highways),Environmental,Employees,Indirect Employee Expenses,Agency Staff - Waged Posts,21/04/2016,181250,550.38,365 Supply Ltd
Cultural & Related,Recreation & Sport,Estates and Economic Development ,Premises related Expenditure,Energy Costs,Gas,21/04/2016,181098,553.77,Total Gas & Power Ltd
Environmental & Regulatory,"Cemetery, Cremation and Mortuary Services",Community and Leisure ,Premises related Expenditure,Grounds Maintenance Costs,Gm - Additional Works,28/04/2016,181441,556,Streetmaster (South Wales) Ltd
Central Services to the Public,Management & Support Services,Chief Executive's,Supplies & Services,Services,Project Consultancy - Policy,21/04/2016,180494,670.2,Moles Consultancy
Environmental & Regulatory,Waste management,Environmental,Supplies & Services,Miscellaneous Expenses,Recycling Campaign,07/04/2016,179946,559,Allwag Promotions Ltd
Central Services to the Public,Management & Support Services,Estates and Economic Development ,Premises related Expenditure,Energy Costs,Gas,21/04/2016,181083,561.96,Total Gas & Power Ltd
Environmental & Regulatory,Waste management,Environmental,Transport Related Expenditure,Direct Transport Costs,Repair Materials,28/04/2016,181419,576.44,Pitter Commercials Ltd
Cultural & Related,Recreation & Sport,Estates and Economic Development ,Premises related Expenditure,Water Services,Water And Sewerage Charges,28/04/2016,181663,694.88,Southern Water
Cultural & Related,Open Spaces,Environmental,Third Party Payments,Other Establishments,Private Contractors,28/04/2016,181671,697,Ivan Gibson Agricultural Contractor
Planning & Development,Development Control,Planning & Building,Employees,Indirect Employee Expenses,Temporary Staff,14/04/2016,180401,585,Oyster Partnership
Cultural & Related,Culture & Heritage,Community and Leisure ,Supplies & Services,Miscellaneous Expenses,Booking Of Acts,07/04/2016,180044,593.34,Gta Music Agents
Cultural & Related,Culture & Heritage,Community and Leisure ,Supplies & Services,Miscellaneous Expenses,Booking Of Acts,21/04/2016,181317,600,Alan Robinson Management
Central Services to the Public,Management & Support Services,Plan Pol & Transport,Premises related Expenditure,Repairs Alterations & Maintenance of Buildings,General Repairs,28/04/2016,181380,600,Purbeck Civil Engineering Limited
Central Services to the Public,Local Tax Collection,Revenues,Supplies & Services,Miscellaneous Expenses,All Pay Fees,14/04/2016,180708,603.23,Allpay Limited
Cultural & Related,Culture & Heritage,Community and Leisure ,Supplies & Services,Catering,Non-Contract Catering,14/04/2016,180432,616.14,Carlsberg Uk Ltd
Planning & Development,Economic Development,Estates and Economic Development ,Supplies & Services,Services,Training Courses,21/04/2016,181399,740,Venture Security Management
Central Services to the Public,Management & Support Services,Plan Pol & Transport,Supplies & Services,Miscellaneous Expenses,Advertising,21/04/2016,179174,621.6,Hampshire Media Limited
Central Services to the Public,Management & Support Services,Plan Pol & Transport,Supplies & Services,Miscellaneous Expenses,Advertising,21/04/2016,180190,621.6,Hampshire Media Limited
Planning & Development,Economic Development,Estates and Economic Development ,Supplies & Services,Grants & Subscriptions,Contributions,14/04/2016,180421,750,Basingstoke Consortium Ltd
Central Services to the Public,Management & Support Services,Estates and Economic Development ,Third Party Payments,Other Establishments,Private Contractors,14/04/2016,180430,625,Waterside Blinds
Planning & Development,Community Development,Community and Leisure ,Supplies & Services,Grants & Subscriptions,Grants,14/04/2016,180789,750,Nursling & Rownhams P C
Planning & Development,Development Control,Planning & Building,Employees,Indirect Employee Expenses,Temporary Staff,21/04/2016,181115,627,Oyster Partnership
Planning & Development,Development Control,Planning & Building,Employees,Indirect Employee Expenses,Temporary Staff,21/04/2016,181318,638.1,Oyster Partnership
Environmental & Regulatory,Regulatory Services,Legal & Democratic,Supplies & Services,Grants & Subscriptions,Subscriptions,21/04/2016,181030,645,James Button & Co
Central Services to the Public,Management & Support Services,Legal & Democratic,Supplies & Services,Services,Legal Fees,28/04/2016,181298,650,Cornerstone Barristers
Planning & Development,Community Development,Community and Leisure ,Supplies & Services,Grants & Subscriptions,Grants,21/04/2016,181394,784,Age Uk Andover Offices
Central Services to the Public,Management & Support Services,IT,Supplies & Services,Communications & Computing,Computer Hardware,28/04/2016,181729,655,Nce Computer Group (Europe) Ltd
Central Services to the Public,Management & Support Services,Estates and Economic Development ,Premises related Expenditure,Water Services,Water And Sewerage Charges,21/04/2016,181077,792.77,Southern Water
Housing Services,Homelessness,Housing and Environmental Health ,Supplies & Services,Services,Legal Fees,21/04/2016,181116,665,Cornerstone Barristers
Cultural & Related,Culture & Heritage,Community and Leisure ,Supplies & Services,Miscellaneous Expenses,Promotions / Special Events,21/04/2016,181238,665,Hampshire Media Limited
Environmental & Regulatory,Waste management,Environmental,Supplies & Services,Miscellaneous Expenses,Recycling Campaign,07/04/2016,179712,665,Allwag Promotions Ltd
Central Services to the Public,Management & Support Services,Environmental,Transport Related Expenditure,Direct Transport Costs,Workshop Consumables,21/04/2016,181020,73.48,M D Services
Central Services to the Public,Management & Support Services,Environmental,Transport Related Expenditure,Direct Transport Costs,Repair Materials,21/04/2016,181020,595.07,M D Services
Planning & Development,Development Control,Planning & Building,Employees,Indirect Employee Expenses,Temporary Staff,14/04/2016,180402,670.2,Oyster Partnership
Central Services to the Public,Management & Support Services,Estates and Economic Development ,Supplies & Services,"Printing, Stationery & General Office Expenses",Stationery,14/04/2016,180399,342.2,Banner Business Services Ltd
Central Services to the Public,Management & Support Services,Estates and Economic Development ,Supplies & Services,"Printing, Stationery & General Office Expenses",Stationery,14/04/2016,180399,112.17,Banner Business Services Ltd
Cultural & Related,Culture & Heritage,Estates and Economic Development ,Supplies & Services,"Printing, Stationery & General Office Expenses",Stationery,14/04/2016,180399,112.17,Banner Business Services Ltd
External Trading Accounts,Economic Development,Estates and Economic Development ,Supplies & Services,"Printing, Stationery & General Office Expenses",Stationery,14/04/2016,180399,112.17,Banner Business Services Ltd
Environmental & Regulatory,Street Cleansing (not chargeable to Highways),Environmental,Employees,Indirect Employee Expenses,Agency Staff - Waged Posts,21/04/2016,181446,684.5,365 Supply Ltd
Cultural & Related,Open Spaces,Environmental,Transport Related Expenditure,Direct Transport Costs,Repair Materials,21/04/2016,180805,684.84,T H White Ltd
Environmental & Regulatory,Waste management,Environmental,Transport Related Expenditure,Direct Transport Costs,Repair Materials,07/04/2016,179719,686.24,Dennis Eagle Ltd
Planning & Development,Community Development,Community and Leisure ,Supplies & Services,Grants & Subscriptions,Grants,14/04/2016,180788,827,Test Valley Community Services
Central Services to the Public,Management & Support Services,Estates and Economic Development ,Premises related Expenditure,Energy Costs,Gas,21/04/2016,181093,698.91,Total Gas & Power Ltd
Planning & Development,Community Development,Community and Leisure ,Supplies & Services,Grants & Subscriptions,Grants,28/04/2016,182038,862,Andover Bowling Club
Planning & Development,Economic Development,Estates and Economic Development ,Supplies & Services,Services,Training Courses,21/04/2016,181230,870,Venture Security Management
Planning & Development,Development Control,Planning & Building,Supplies & Services,"Equipment, Furniture & Materials",Maintenance Of Tools,28/04/2016,181302,732,The Microfilm Shop
Central Services,Corporate & Democratic Core,Corporate & Democratic,Supplies & Services,Services,Training Courses,06/04/2016,179472,735,Improvement And Development Agency
Central Services to the Public,Management & Support Services,Legal & Democratic,Supplies & Services,"Printing, Stationery & General Office Expenses",Photocopying Costs,28/04/2016,181642,735.98,Ricoh Uk Ltd
Central Services to the Public,Management & Support Services,IT,Supplies & Services,Communications & Computing,Hardware Maintenance,28/04/2016,181892,740.62,Quadrant Security Group Ltd
Cultural & Related,Tourism,Estates and Economic Development ,Supplies & Services,"Printing, Stationery & General Office Expenses",External Printing,28/04/2016,181121,892,Bulpitt Print Ltd
Cultural & Related,Tourism,Estates and Economic Development ,Supplies & Services,"Printing, Stationery & General Office Expenses",External Printing,28/04/2016,181682,892,Bulpitt Print Ltd
"Highways, Roads & Transport",Highways and roads - maintenance,Plan Pol & Transport,Supplies & Services,Services,Training Courses,14/04/2016,180214,750,Cadventure Ltd
Central Services,Corporate & Democratic Core,Corporate & Democratic,Supplies & Services,Services,Professional Advice,21/04/2016,180804,750,Dc Commerical Solicitors
Cultural & Related,Culture & Heritage,Community and Leisure ,Supplies & Services,Services,Tutors,20/04/2016,180715,910,Personal data - Data Protection Act 1998
Central Services to the Public,Management & Support Services,Environmental,Transport Related Expenditure,Direct Transport Costs,Repair Materials,21/04/2016,181259,759.71,Dennis Eagle Ltd
Cultural & Related,Open Spaces,Community and Leisure ,Premises related Expenditure,Grounds Maintenance Costs,Gm - Additional Works,21/04/2016,181442,761,Broxap Limited (Stadia Sports )
Cultural & Related,Open Spaces,Environmental,Supplies & Services,"Equipment, Furniture & Materials",Purchase Equip + Materials,21/04/2016,181239,765,Rigby Taylor Ltd
Central Services to the Public,Management & Support Services,IT,Supplies & Services,Communications & Computing,Land Line Telephone Charges,21/04/2016,181046,767.53,Virgin Media Payments Ltd
Housing Services,Housing Benefits ,Revenues,Employees,Indirect Employee Expenses,Temporary Staff,21/04/2016,181109,783,Eden Brown Ltd
Central Services to the Public,Management & Support Services,IT,Supplies & Services,Communications & Computing,Hardware Maintenance,14/04/2016,180053,786,Dell Computer Corporation Ltd
Housing Services,Housing Benefits ,Revenues,Employees,Indirect Employee Expenses,Temporary Staff,28/04/2016,181914,790.25,Eden Brown Ltd
"Highways, Roads & Transport",Parking Services,Plan Pol & Transport,Supplies & Services,Communications & Computing,Software Maintenance,28/04/2016,181709,790.4,Cobalt Telephone Technologies
Cultural & Related,Culture & Heritage,Community and Leisure ,Supplies & Services,Miscellaneous Expenses,Booking Of Acts,28/04/2016,181402,790.63,Ballet Theatre Uk
Environmental & Regulatory,Regulatory Services,Housing and Environmental Health ,Supplies & Services,Grants and subscriptions,Capital Grants,07/04/2016,180175,968,Prb Building Services
Environmental & Regulatory,Street Cleansing (not chargeable to Highways),Environmental,Employees,Indirect Employee Expenses,Agency Staff - Waged Posts,07/04/2016,179950,476.38,365 Supply Ltd
Environmental & Regulatory,Waste management,Environmental,Employees,Indirect Employee Expenses,Agency Staff - Waged Posts,07/04/2016,179950,342.25,365 Supply Ltd
Environmental & Regulatory,Street Cleansing (not chargeable to Highways),Environmental,Supplies & Services,"Equipment, Furniture & Materials",Purchase Equip + Materials,28/04/2016,181376,120,Vernham Labels Ltd
Environmental & Regulatory,Waste management,Environmental,Supplies & Services,Miscellaneous Expenses,Recycling Campaign,28/04/2016,181376,700,Vernham Labels Ltd
Environmental & Regulatory,Street Cleansing (not chargeable to Highways),Environmental,Employees,Indirect Employee Expenses,Agency Staff - Waged Posts,07/04/2016,179948,615.13,365 Supply Ltd
Environmental & Regulatory,Waste management,Environmental,Employees,Indirect Employee Expenses,Agency Staff - Waged Posts,07/04/2016,179948,208.13,365 Supply Ltd
Central Services to the Public,Management & Support Services,IT,Employees,Indirect Employee Expenses,Temporary Staff,21/04/2016,181421,825,Gcs Recruitment Services
Central Services to the Public,Management & Support Services,IT,Employees,Indirect Employee Expenses,Temporary Staff,28/04/2016,181710,825,Gcs Recruitment Services
Central Services to the Public,Local Tax Collection,Revenues,Supplies & Services,"Printing, Stationery & General Office Expenses",External Printing,07/04/2016,179622,831,Computastat Group Ltd
Planning & Development,Community Development,Community and Leisure ,Supplies & Services,Grants & Subscriptions,Grants,06/04/2016,180136,1000,Romsey Arts Festival
Planning & Development,Community Development,Community and Leisure ,Supplies & Services,Grants & Subscriptions,Grants,28/04/2016,182039,1000,Valley Leisure Ltd
Planning & Development,Community Development,Community and Leisure ,Supplies & Services,Grants & Subscriptions,Grants,07/04/2016,180176,1000,Valley Park Parish Council
Planning & Development,Community Development,Community and Leisure ,Supplies & Services,Grants & Subscriptions,Grants,21/04/2016,181398,1000,St Pauls Church Centre
Central Services,Corporate & Democratic Core,Corporate & Democratic,Supplies & Services,Grants & Subscriptions,Grants,21/04/2016,181392,1000,Kings Somborne Parish Council
Environmental & Regulatory,Street Cleansing (not chargeable to Highways),Environmental,Employees,Indirect Employee Expenses,Agency Staff - Waged Posts,21/04/2016,181249,555,365 Supply Ltd
Environmental & Regulatory,Waste management,Environmental,Employees,Indirect Employee Expenses,Agency Staff - Waged Posts,21/04/2016,181249,286.75,365 Supply Ltd
Environmental & Regulatory,Regulatory Services,Housing and Environmental Health ,Supplies & Services,Miscellaneous Expenses,Kennel fees,21/04/2016,181018,850,Anton Vets Ltd
Central Services to the Public,Management & Support Services,Estates and Economic Development ,Supplies & Services,Communications & Computing,Telephone Tracking System,21/04/2016,180771,60,Ctrack Uk Limited
Environmental & Regulatory,Regulatory Services,Estates and Economic Development ,Supplies & Services,Communications & Computing,Telephone Tracking System,21/04/2016,180771,20,Ctrack Uk Limited
Cultural & Related,Open Spaces,Environmental,Supplies & Services,Communications & Computing,Telephone Tracking System,21/04/2016,180771,280,Ctrack Uk Limited
Environmental & Regulatory,Street Cleansing (not chargeable to Highways),Environmental,Supplies & Services,Communications & Computing,Telephone Tracking System,21/04/2016,180771,230,Ctrack Uk Limited
Environmental & Regulatory,Waste management,Environmental,Supplies & Services,Communications & Computing,Telephone Tracking System,21/04/2016,180771,210,Ctrack Uk Limited
Environmental & Regulatory,Waste management,Environmental,Supplies & Services,Communications & Computing,Telephone Tracking System,21/04/2016,180771,20,Ctrack Uk Limited
Central Services to the Public,Management & Support Services,Environmental,Supplies & Services,Communications & Computing,Telephone Tracking System,21/04/2016,180771,30,Ctrack Uk Limited
Cultural & Related,Open Spaces,Environmental,Supplies & Services,"Equipment, Furniture & Materials",Purchase Equip + Materials,21/04/2016,181248,853.2,Nomix Enviro
Central Services to the Public,Management & Support Services,Finance,Supplies & Services,"Printing, Stationery & General Office Expenses",Postage Costs,28/04/2016,181870,856.66,Whistl Uk Ltd
Central Services to the Public,Management & Support Services,Estates and Economic Development ,Premises related Expenditure,Water Services,Water And Sewerage Charges,21/04/2016,181063,1033.52,Southern Water
"Highways, Roads & Transport",Parking Services,Plan Pol & Transport,Supplies & Services,"Printing, Stationery & General Office Expenses",Stationery,14/04/2016,180393,869.55,Banner Business Services Ltd
Central Services to the Public,Management & Support Services,Plan Pol & Transport,Premises related Expenditure,Repairs Alterations & Maintenance of Buildings,General Repairs,14/04/2016,180189,874.6,Coupe Line
Environmental & Regulatory,Regulatory Services,Housing and Environmental Health ,Supplies & Services,Services,Legal Fees,27/04/2016,181129,875,Personal data - Data Protection Act 1998
Central Services to the Public,Management & Support Services,IT,Supplies & Services,"Equipment, Furniture & Materials",Purchase Equip + Materials,07/04/2016,180042,885.07,Xerox (Uk) Ltd
Environmental & Regulatory,Street Cleansing (not chargeable to Highways),Environmental,Employees,Indirect Employee Expenses,Agency Staff - Waged Posts,07/04/2016,179949,550.38,365 Supply Ltd
Environmental & Regulatory,Waste management,Environmental,Employees,Indirect Employee Expenses,Agency Staff - Waged Posts,07/04/2016,179949,342.25,365 Supply Ltd
Central Services to the Public,Management & Support Services,Estates and Economic Development ,Premises related Expenditure,Repairs Alterations & Maintenance of Buildings,Planned Maintenance - Non Est,14/04/2016,180468,900,Woosh Washrooms
"Highways, Roads & Transport",Parking Services,Plan Pol & Transport,Supplies & Services,Services,Professional Fees,28/04/2016,181926,1088.1,Patrol
Central Services to the Public,Management & Support Services,Housing and Environmental Health ,Supplies & Services,Communications & Computing,Computer Hardware,21/04/2016,181034,907,It Bus Ltd
Environmental & Regulatory,Waste management,Environmental,Transport Related Expenditure,Direct Transport Costs,Repair Materials,28/04/2016,181674,721.26,Terberg Matec Uk Limited
Environmental & Regulatory,Waste management,Environmental,Transport Related Expenditure,Direct Transport Costs,Repair Materials,28/04/2016,181674,212.39,Terberg Matec Uk Limited
Planning & Development,Development Control,Planning & Building,Supplies & Services,"Printing, Stationery & General Office Expenses",Written Media,21/04/2016,181292,1122,Hammicks Legal Information Services
Central Services,Corporate & Democratic Core,Corporate & Democratic,Supplies & Services,Communications & Computing,Land Line Telephone Charges,14/04/2016,180483,936.77,Invicta Lifeline Ltd
Housing Services,Homelessness,Housing and Environmental Health ,Premises related Expenditure,Repairs Alterations & Maintenance of Buildings,Building Maint - Non Estates,14/04/2016,180734,1137.18,Aster Communities
Environmental & Regulatory,Waste management,Environmental,Supplies & Services,Miscellaneous Expenses,Recycling Campaign,21/04/2016,181377,950,Allwag Promotions Ltd
Environmental & Regulatory,Waste management,Environmental,Transport Related Expenditure,Direct Transport Costs,Repair Materials,28/04/2016,181299,570.26,Dennis Eagle Ltd
Central Services to the Public,Management & Support Services,Environmental,Transport Related Expenditure,Direct Transport Costs,Repair Materials,28/04/2016,181299,384.72,Dennis Eagle Ltd
Central Services to the Public,Management & Support Services,Environmental,Supplies & Services,Grants & Subscriptions,Subscriptions,28/04/2016,181300,963,Freight Transport Association
Central Services to the Public,Management & Support Services,Estates and Economic Development ,Third Party Payments,Other Establishments,Private Contractors,28/04/2016,181895,985,Waterside Blinds
Housing Services,"Housing strategy, advice and enabling",Housing and Environmental Health ,Employees,Indirect Employee Expenses,Temporary Staff,28/04/2016,181660,990,Abatec Ltd
Housing Services,Housing Benefits ,Revenues,Employees,Indirect Employee Expenses,Temporary Staff,14/04/2016,180638,496.63,Eden Brown Ltd
Central Services to the Public,Local Tax Collection,Revenues,Employees,Indirect Employee Expenses,Temporary Staff,14/04/2016,180638,496.62,Eden Brown Ltd
Environmental & Regulatory,Street Cleansing (not chargeable to Highways),Environmental,Supplies & Services,Services,Training Courses,07/04/2016,179952,124,The Health & Safety Group
Environmental & Regulatory,Waste management,Environmental,Supplies & Services,Services,Training Courses,07/04/2016,179952,622,The Health & Safety Group
Central Services to the Public,Management & Support Services,Environmental,Supplies & Services,Services,Training Courses,07/04/2016,179952,249,The Health & Safety Group
Central Services to the Public,Management & Support Services,Estates and Economic Development ,Premises related Expenditure,Repairs Alterations & Maintenance of Buildings,Planned Maintenance - Non Est,21/04/2016,181036,250,Tls Fire & Security Llp
Central Services to the Public,Management & Support Services,Estates and Economic Development ,Premises related Expenditure,Repairs Alterations & Maintenance of Buildings,Planned Maintenance - Non Est,21/04/2016,181036,250,Tls Fire & Security Llp
Central Services to the Public,Management & Support Services,Estates and Economic Development ,Premises related Expenditure,Repairs Alterations & Maintenance of Buildings,Planned Maintenance - Non Est,21/04/2016,181036,250,Tls Fire & Security Llp
Central Services to the Public,Management & Support Services,Estates and Economic Development ,Premises related Expenditure,Repairs Alterations & Maintenance of Buildings,Planned Maintenance - Non Est,21/04/2016,181036,250,Tls Fire & Security Llp
Central Services to the Public,Management & Support Services,Legal & Democratic,Employees,Indirect Employee Expenses,Agency Staff - Waged Posts,14/04/2016,180474,1050,Venn Group Ltd
Cultural & Related,Culture & Heritage,Community and Leisure ,Supplies & Services,Miscellaneous Expenses,Booking Of Acts,14/04/2016,180416,1054.67,Personal data - Data Protection Act 1998
Environmental & Regulatory,Regulatory Services,Housing and Environmental Health ,Supplies & Services,Grants and subscriptions,Capital Grants,28/04/2016,182037,1290,Epw Construction
Housing Services,Housing Benefits ,Revenues,Employees,Indirect Employee Expenses,Temporary Staff,21/04/2016,181110,1080.25,Eden Brown Ltd
Planning & Development,Community Development,Community and Leisure ,Supplies & Services,Grants & Subscriptions,Grants,21/04/2016,181397,1297,Romsey Town Council
Cultural & Related,Open Spaces,Community and Leisure ,Premises related Expenditure,Repairs Alterations & Maintenance of Buildings,Estates premises costs - AMP,07/04/2016,179754,1095,Fernden Construction (Winchester) Ltd
Cultural & Related,Open Spaces,Community and Leisure ,Premises related Expenditure,Grounds Maintenance Costs,Gm - Additional Works,28/04/2016,181440,367.33,Streetmaster (South Wales) Ltd
Cultural & Related,Open Spaces,Community and Leisure ,Premises related Expenditure,Grounds Maintenance Costs,Gm - Additional Works,28/04/2016,181440,367.34,Streetmaster (South Wales) Ltd
Cultural & Related,Open Spaces,Community and Leisure ,Premises related Expenditure,Grounds Maintenance Costs,Gm - Additional Works,28/04/2016,181440,367.33,Streetmaster (South Wales) Ltd
Environmental & Regulatory,Waste management,Environmental,Supplies & Services,Miscellaneous Expenses,Recycling Campaign,28/04/2016,181907,1335,Cammegh Davies Fleming
Planning & Development,Community Development,Community and Leisure ,Supplies & Services,Grants & Subscriptions,Grants,20/04/2016,181277,1362.31,Abbotts Ann Village Shop Association
Cultural & Related,Culture & Heritage,Community and Leisure ,Supplies & Services,Miscellaneous Expenses,Booking Of Acts,28/04/2016,181692,1373,Dirty/Dc
Cultural & Related,Culture & Heritage,Community and Leisure ,Premises related Expenditure,Cleaning and domestic supplies,Cleaning Materials-Purchases,07/04/2016,179478,1168.8,Phs Group Plc
Central Services to the Public,Management & Support Services,Estates and Economic Development ,Premises related Expenditure,Repairs Alterations & Maintenance of Buildings,Planned Maintenance - Non Est,21/04/2016,181124,1173,Btu Installation & Maintenance Ltd
"Highways, Roads & Transport",Parking Services,Plan Pol & Transport,Supplies & Services,Miscellaneous Expenses,Advertising,14/04/2016,179176,1177.6,Hampshire Media Limited
Cultural & Related,Culture & Heritage,Community and Leisure ,Supplies & Services,"Equipment, Furniture & Materials",Purchase Equip + Materials,14/04/2016,180406,450,Dirty/Dc
Cultural & Related,Culture & Heritage,Community and Leisure ,Supplies & Services,Miscellaneous Expenses,Booking Of Acts,14/04/2016,180406,1000,Dirty/Dc
Central Services to the Public,Management & Support Services,IT,Supplies & Services,"Equipment, Furniture & Materials",Purchase Equipment For Hire,07/04/2016,180041,551.25,Xerox (Uk) Ltd
Central Services to the Public,Management & Support Services,IT,Supplies & Services,"Equipment, Furniture & Materials",Purchase Equip + Materials,07/04/2016,180041,661.83,Xerox (Uk) Ltd
Environmental & Regulatory,Regulatory Services,Housing and Environmental Health ,Supplies & Services,Grants and subscriptions,Capital Grants,14/04/2016,180783,1459.02,Studio Four Architects Ltd
Planning & Development,Community Development,Community and Leisure ,Supplies & Services,Grants & Subscriptions,Grants,28/04/2016,182041,1478,Andover Cricket Club
Central Services to the Public,Management & Support Services,Environmental,Supplies & Services,"Printing, Stationery & General Office Expenses",Postage Costs,28/04/2016,163544,1494.07,Royal Mail
Planning & Development,Community Development,Community and Leisure ,Supplies & Services,Grants & Subscriptions,Grants,13/04/2016,180647,1518,Three Rivers Community Rail Partnership
Environmental & Regulatory,Regulatory Services,Estates and Economic Development ,Premises related Expenditure,Water Services,Water And Sewerage Charges,21/04/2016,181059,1525.22,Southern Water
Planning & Development,Building Control,Planning & Building,Supplies & Services,Grants & Subscriptions,Grants,28/04/2016,182023,1280.1,Exova (Uk) Ltd T/A Exova Bm Trada
Planning & Development,Planning Policy,Plan Pol & Transport,Supplies & Services,Grants & Subscriptions,Grants,14/04/2016,179042,1538.84,Hampshire County Council
Central Services to the Public,Management & Support Services,Legal & Democratic,Employees,Indirect Employee Expenses,Agency Staff - Waged Posts,21/04/2016,181094,1290,Venn Group Ltd
Central Services to the Public,Management & Support Services,Legal & Democratic,Employees,Indirect Employee Expenses,Agency Staff - Waged Posts,28/04/2016,181703,1290,Venn Group Ltd
Environmental & Regulatory,Regulatory Services,Housing and Environmental Health ,Supplies & Services,Grants and subscriptions,Capital Grants,07/04/2016,180212,1566,Bentley Mobility Services
Cultural & Related,Culture & Heritage,Estates and Economic Development ,Premises related Expenditure,Energy Costs,Gas,07/04/2016,178779,1306.66,Total Gas & Power Ltd
Central Services to the Public,Management & Support Services,Environmental,Supplies & Services,Communications & Computing,Software Maintenance,07/04/2016,179750,1315.52,Triscan Systems Ltd
Central Services to the Public,Management & Support Services,Housing and Environmental Health ,Supplies & Services,Communications & Computing,Computer Hardware,07/04/2016,180072,1338,Bmi Solutions
Cultural & Related,Culture & Heritage,Community and Leisure ,Premises related Expenditure,Repairs Alterations & Maintenance of Buildings,Building Maint - Non Estates,14/04/2016,180495,1350,Merryhill Asbestos Testing & Consulting Ltd
Cultural & Related,Culture & Heritage,Community and Leisure ,Supplies & Services,Catering,Non-Contract Catering,28/04/2016,181401,1380.33,Carlsberg Uk Ltd
Central Services to the Public,Elections,Legal & Democratic,Supplies & Services,"Equipment, Furniture & Materials",Purchase Equip + Materials,21/04/2016,181097,1381.6,Shaw & Sons Ltd
Central Services to the Public,Management & Support Services,Finance,Supplies & Services,Services,Professional Fees,28/04/2016,181035,1409.4,Lavat Consulting Limited
Cultural & Related,Open Spaces,Environmental,Supplies & Services,"Equipment, Furniture & Materials",Purchase Equip + Materials,21/04/2016,181027,1440,Fleet (Line Markers) Ltd
Cultural & Related,Culture & Heritage,Community and Leisure ,Supplies & Services,Miscellaneous Expenses,Booking Of Acts,28/04/2016,181887,1451.34,Neil Sands Productions
Central Services to the Public,Management & Support Services,IT,Supplies & Services,Communications & Computing,Hardware Maintenance,07/04/2016,180183,1451.75,Quadrant Security Group Ltd
Central Services,Corporate & Democratic Core,Corporate & Democratic,Supplies & Services,Communications & Computing,Computer Software,07/04/2016,179022,1451.84,Siteimprove Ltd
Environmental & Regulatory,Regulatory Services,Housing and Environmental Health ,Supplies & Services,Grants and subscriptions,Capital Grants,14/04/2016,180782,1745,Hampshire Mobility Services
Environmental & Regulatory,Waste management,Environmental,Transport Related Expenditure,Direct Transport Costs,Repair Materials,21/04/2016,181016,1268.63,Dennis Eagle Ltd
Central Services to the Public,Management & Support Services,Environmental,Transport Related Expenditure,Direct Transport Costs,Repair Materials,21/04/2016,181016,192.36,Dennis Eagle Ltd
Central Services,Corporate & Democratic Core,Corporate & Democratic,Supplies & Services,Services,Project Consultancy - Policy,07/04/2016,180071,1779.6,Third Strand Consultancy Ltd
Housing Services,"Housing strategy, advice and enabling",Housing and Environmental Health ,Employees,Indirect Employee Expenses,Temporary Staff,07/04/2016,180050,1485,Abatec Ltd
Housing Services,"Housing strategy, advice and enabling",Housing and Environmental Health ,Employees,Indirect Employee Expenses,Temporary Staff,07/04/2016,180051,1485,Abatec Ltd
Housing Services,"Housing strategy, advice and enabling",Housing and Environmental Health ,Employees,Indirect Employee Expenses,Temporary Staff,07/04/2016,180052,1485,Abatec Ltd
Housing Services,"Housing strategy, advice and enabling",Housing and Environmental Health ,Employees,Indirect Employee Expenses,Temporary Staff,28/04/2016,181661,1485,Abatec Ltd
Housing Services,"Housing strategy, advice and enabling",Housing and Environmental Health ,Employees,Indirect Employee Expenses,Temporary Staff,28/04/2016,181662,1485,Abatec Ltd
Planning & Development,Development Control,Planning & Building,Supplies & Services,Miscellaneous Expenses,Planning Appeal Costs,14/04/2016,180405,1807.5,Cornerstone Barristers
Central Services to the Public,Management & Support Services,Estates and Economic Development ,Third Party Payments,Other Establishments,Private Contractors,21/04/2016,181246,1515,New Forest Fencing Ltd
Central Services to the Public,Management & Support Services,Finance,Supplies & Services,"Printing, Stationery & General Office Expenses",Postage Costs,28/04/2016,181871,1551.43,Whistl Uk Ltd
Environmental & Regulatory,Regulatory Services,Housing and Environmental Health ,Supplies & Services,Miscellaneous Expenses,Kennel fees,14/04/2016,180201,1566,Newbury Lodge Kennels
Central Services to the Public,Management & Support Services,Estates and Economic Development ,Third Party Payments,Other Establishments,Private Contractors,21/04/2016,181245,1575,Tank Installation Specialists Ltd
"Highways, Roads & Transport",Parking Services,Plan Pol & Transport,Supplies & Services,Services,Professional Fees,07/04/2016,179604,1918.4,Friends Life Company Ltd
Central Services to the Public,Management & Support Services,IT,Support Services,IT,IT Hardware costs,14/04/2016,180750,1599.98,European Electronique
Housing Services,Homelessness,Housing and Environmental Health ,Supplies & Services,Services,Project Consultancy - Policy,14/04/2016,180607,1600,Jenkins Duval Ltd
Central Services to the Public,Local Tax Collection,Revenues,Supplies & Services,Services,Professional Fees,28/04/2016,182016,558,Ross & Roberts
Central Services,Corporate & Democratic Core,Corporate & Democratic,Supplies & Services,Miscellaneous Expenses,Other Miscellaneous Costs,07/04/2016,179186,1929.64,Personal data - Data Protection Act 1998
External Trading Accounts,Business Parks,Estates and Economic Development ,Premises related Expenditure,Repairs Alterations & Maintenance of Buildings,Planned Maintenance - Non Est,07/04/2016,180035,1617.59,Rentokil Initial Uk Ltd
Central Services to the Public,Local Tax Collection,Revenues,Supplies & Services,Services,Professional Fees,14/04/2016,180632,150,Ross & Roberts
Central Services to the Public,Management & Support Services,Estates and Economic Development ,Supplies & Services,"Equipment, Furniture & Materials",Purchase Materials (Job Cost),28/04/2016,182019,1638,Sovereign Joinery Products Ltd
Cultural & Related,Tourism,Estates and Economic Development ,Supplies & Services,Grants & Subscriptions,Subscriptions,21/04/2016,180759,1640,Tourism South East
Central Services to the Public,Management & Support Services,Environmental,Supplies & Services,"Equipment, Furniture & Materials",Purchase Tools,27/04/2016,181665,1650,Andrew Page Ltd
Cultural & Related,Culture & Heritage,Community and Leisure ,Supplies & Services,Services,Project Consultancy - Policy,28/04/2016,181382,2000,Spud
Cultural & Related,Tourism,Estates and Economic Development ,Premises related Expenditure,Repairs Alterations & Maintenance of Buildings,Planned Maintenance - Non Est,07/04/2016,179733,19.25,Temple Lifts Ltd
Cultural & Related,Culture & Heritage,Estates and Economic Development ,Premises related Expenditure,Repairs Alterations & Maintenance of Buildings,Planned Maintenance - Non Est,07/04/2016,179733,197.5,Temple Lifts Ltd
Cultural & Related,Culture & Heritage,Estates and Economic Development ,Premises related Expenditure,Repairs Alterations & Maintenance of Buildings,Planned Maintenance - Non Est,07/04/2016,179733,19.25,Temple Lifts Ltd
Central Services to the Public,Management & Support Services,Estates and Economic Development ,Premises related Expenditure,Repairs Alterations & Maintenance of Buildings,Planned Maintenance - Non Est,07/04/2016,179733,790,Temple Lifts Ltd
Cultural & Related,Recreation & Sport,Community and Leisure ,Premises related Expenditure,Repairs Alterations & Maintenance of Buildings,Planned Maintenance - Non Est,07/04/2016,179733,395,Temple Lifts Ltd
Cultural & Related,Recreation & Sport,Community and Leisure ,Premises related Expenditure,Repairs Alterations & Maintenance of Buildings,Planned Maintenance - Non Est,07/04/2016,179733,197.5,Temple Lifts Ltd
Cultural & Related,Culture & Heritage,Community and Leisure ,Premises related Expenditure,Repairs Alterations & Maintenance of Buildings,Planned Maintenance - Non Est,07/04/2016,179733,48.45,Temple Lifts Ltd
Central Services to the Public,Management & Support Services,Estates and Economic Development ,Third Party Payments,Other Establishments,Contract Catering,21/04/2016,180608,1667.46,Edwards And Ward Ltd
Environmental & Regulatory,Regulatory Services,Housing and Environmental Health ,Supplies & Services,Miscellaneous Expenses,Kennel fees,14/04/2016,180200,1674,Newbury Lodge Kennels
Cultural & Related,Culture & Heritage,Community and Leisure ,Supplies & Services,Miscellaneous Expenses,Booking Of Acts,14/04/2016,180619,1719.33,Avalon Management Group Ltd
Planning & Development,Development Control,Planning & Building,Employees,Indirect Employee Expenses,Temporary Staff,14/04/2016,180404,1732.1,Oyster Partnership
Central Services to the Public,Local Tax Collection,Revenues,Supplies & Services,Grants & Subscriptions,Subscriptions,28/04/2016,181918,1750,Cipfa Business Limited
Central Services to the Public,Management & Support Services,Environmental,Supplies & Services,"Printing, Stationery & General Office Expenses",Photocopying Costs,14/04/2016,180439,1768.31,Ricoh Uk Ltd
Cultural & Related,Culture & Heritage,Community and Leisure ,Supplies & Services,Miscellaneous Expenses,Booking Of Acts,21/04/2016,181269,1770,Bound & Gagged Comedy Ltd
Planning & Development,Development Control,Planning & Building,Employees,Indirect Employee Expenses,Temporary Staff,14/04/2016,180403,1803.9,Oyster Partnership
Cultural & Related,Culture & Heritage,Community and Leisure ,Supplies & Services,Miscellaneous Expenses,Booking Of Acts,07/04/2016,180196,1846.66,Ckp Ltd
Planning & Development,Development Control,Planning & Building,Supplies & Services,"Printing, Stationery & General Office Expenses",Stationery,14/04/2016,180413,1899.69,Banner Business Services Ltd
Central Services to the Public,Local Tax Collection,Revenues,Supplies & Services,Communications & Computing,Software Maintenance,28/04/2016,181701,192.76,Northgate Public Services Uk Ltd
Central Services to the Public,Local Tax Collection,Revenues,Supplies & Services,Communications & Computing,Software Maintenance,28/04/2016,181701,771.05,Northgate Public Services Uk Ltd
Housing Services,Housing Benefits ,Revenues,Supplies & Services,Communications & Computing,Software Maintenance,28/04/2016,181701,481.91,Northgate Public Services Uk Ltd
Central Services to the Public,Local Tax Collection,Revenues,Supplies & Services,Communications & Computing,Software Maintenance,28/04/2016,181701,481.9,Northgate Public Services Uk Ltd
Central Services,Corporate & Democratic Core,Corporate & Democratic,Supplies & Services,Miscellaneous Expenses,External Audit Fees,14/04/2016,179488,1932,Ernst & Young Llp
Central Services to the Public,Management & Support Services,Estates and Economic Development ,Third Party Payments,Other Establishments,Contract Catering,21/04/2016,180620,1952.01,Edwards And Ward Ltd
Cultural & Related,Culture & Heritage,Community and Leisure ,Supplies & Services,Miscellaneous Expenses,Booking Of Acts,14/04/2016,180716,2363.34,Desperado
Planning & Development,Building Control,Planning & Building,Supplies & Services,Services,Training Courses,14/04/2016,180475,1973.45,Labc Training
Central Services to the Public,Management & Support Services,Environmental,Transport Related Expenditure,Direct Transport Costs,Diesel,28/04/2016,181272,1657.2,Wp Group Limited
Central Services to the Public,Management & Support Services,Environmental,Transport Related Expenditure,Direct Transport Costs,Red Derv,28/04/2016,181272,364,Wp Group Limited
Central Services to the Public,Management & Support Services,Estates and Economic Development ,Supplies & Services,"Equipment, Furniture & Materials",Purchase Tools,21/04/2016,180479,1978,Cjs Portsmouth Ltd
Central Services to the Public,Management & Support Services,Legal & Democratic,Supplies & Services,"Printing, Stationery & General Office Expenses",Postage Costs,14/04/2016,180606,2050,Dx Network Services Limited
Environmental & Regulatory,Waste management,Environmental,Supplies & Services,Miscellaneous Expenses,Recycling Campaign,14/04/2016,180460,2106.75,Personal data - Data Protection Act 1998
Environmental & Regulatory,Regulatory Services,Housing and Environmental Health ,Supplies & Services,Grants and subscriptions,Capital Grants,07/04/2016,180211,2534.98,Northfield Property Solutions Limited
Central Services to the Public,Management & Support Services,Estates and Economic Development ,Supplies & Services,"Equipment, Furniture & Materials",Purchase Materials (Job Cost),14/04/2016,180478,2113.69,Cjs Portsmouth Ltd
Environmental & Regulatory,Regulatory Services,Housing and Environmental Health ,Supplies & Services,Grants and subscriptions,Capital Grants,21/04/2016,181425,2580.52,Community First New Forest
Environmental & Regulatory,Street Cleansing (not chargeable to Highways),Environmental,Supplies & Services,"Equipment, Furniture & Materials",Purchase Equip + Materials,14/04/2016,180595,2210,Southern Broadcast & Surveillance Ltd
Planning & Development,Community Development,Community and Leisure ,Supplies & Services,Grants & Subscriptions,Grants,06/04/2016,180135,2662,Alamein Community Association
Central Services to the Public,Management & Support Services,Environmental,Transport Related Expenditure,Direct Transport Costs,Diesel,07/04/2016,179972,2318.23,Wp Group Limited
Environmental & Regulatory,Regulatory Services,Housing and Environmental Health ,Supplies & Services,Grants and subscriptions,Capital Grants,20/04/2016,181276,2830.47,Personal data - Data Protection Act 1998
Cultural & Related,Open Spaces,Environmental,Transport Related Expenditure,Direct Transport Costs,Tyres,14/04/2016,180596,49.77,Ats Euromaster Limited
Environmental & Regulatory,Waste management,Environmental,Transport Related Expenditure,Direct Transport Costs,Tyres,14/04/2016,180596,727.24,Ats Euromaster Limited
Environmental & Regulatory,Waste management,Environmental,Transport Related Expenditure,Direct Transport Costs,Tyres,14/04/2016,180596,1444.94,Ats Euromaster Limited
Central Services to the Public,Management & Support Services,Environmental,Transport Related Expenditure,Direct Transport Costs,Tyres,14/04/2016,180596,198.42,Ats Euromaster Limited
Planning & Development,Economic Development,Estates and Economic Development ,Supplies & Services,Grants & Subscriptions,Grants,14/04/2016,180181,2443.8,Heartflood Ltd
Planning & Development,Economic Development,Estates and Economic Development ,Supplies & Services,Grants & Subscriptions,Grants,14/04/2016,180463,2443.8,Heartflood Ltd
Environmental & Regulatory,Regulatory Services,Housing and Environmental Health ,Supplies & Services,Grants and subscriptions,Capital Grants,14/04/2016,180784,2966,Prism Medical Uk
Central Services to the Public,Management & Support Services,Estates and Economic Development ,Premises related Expenditure,Energy Costs,Gas,21/04/2016,181085,2472.85,Total Gas & Power Ltd
Central Services to the Public,Management & Support Services,Chief Executive's,Supplies & Services,"Printing, Stationery & General Office Expenses",Conference Costs,28/04/2016,181068,990,Local Government Association
Central Services,Corporate & Democratic Core,Corporate & Democratic,Supplies & Services,"Printing, Stationery & General Office Expenses",Conference Costs,28/04/2016,181068,1485,Local Government Association
Central Services to the Public,Management & Support Services,Environmental,Transport Related Expenditure,Direct Transport Costs,Vehicles and Plant,14/04/2016,180462,2480,New Forest Farm Machinery Ltd
Cultural & Related,Culture & Heritage,Community and Leisure ,Supplies & Services,Miscellaneous Expenses,Booking Of Acts,21/04/2016,180764,2481.56,Pasadena Roof Orchestra 2012 Ltd
Central Services to the Public,Management & Support Services,IT,Supplies & Services,Communications & Computing,Software Maintenance,14/04/2016,180756,2487.51,Vodafone Cable & Wireless Uk
Environmental & Regulatory,Regulatory Services,Housing and Environmental Health ,Supplies & Services,Grants and subscriptions,Capital Grants,07/04/2016,180174,3000,Prb Building Services
Central Services to the Public,Management & Support Services,Environmental,Transport Related Expenditure,Direct Transport Costs,Diesel,21/04/2016,180803,2501.1,Wp Group Limited
Central Services to the Public,Management & Support Services,Environmental,Transport Related Expenditure,Direct Transport Costs,Diesel,07/04/2016,179971,2511.35,Wp Group Limited
Environmental & Regulatory,Regulatory Services,Housing and Environmental Health ,Supplies & Services,Grants and subscriptions,Capital Grants,06/04/2016,180133,3030.48,Sahar Building Services Ltd
Central Services to the Public,Local Tax Collection,Revenues,Supplies & Services,"Printing, Stationery & General Office Expenses",External Printing,07/04/2016,179620,2542.95,Computastat Group Ltd
Central Services to the Public,Elections,Legal & Democratic,Supplies & Services,"Printing, Stationery & General Office Expenses",Postage Costs,28/04/2016,181647,2557.95,Royal Mail
Environmental & Regulatory,Regulatory Services,Estates and Economic Development ,Premises related Expenditure,Repairs Alterations & Maintenance of Buildings,Planned Maintenance - Non Est,21/04/2016,181038,2304,Wallgate Ltd
Cultural & Related,Open Spaces,Community and Leisure ,Premises related Expenditure,Repairs Alterations & Maintenance of Buildings,Planned Maintenance - Non Est,21/04/2016,181038,288,Wallgate Ltd
Cultural & Related,Culture & Heritage,Community and Leisure ,Supplies & Services,Miscellaneous Expenses,Booking Of Acts,21/04/2016,181400,2627.5,Vienna Festival Ballet
Central Services to the Public,Management & Support Services,Environmental,Transport Related Expenditure,Direct Transport Costs,Diesel,07/04/2016,179740,2519.4,Wp Group Limited
Central Services to the Public,Management & Support Services,Environmental,Transport Related Expenditure,Direct Transport Costs,Red Derv,07/04/2016,179740,187.22,Wp Group Limited
Cultural & Related,Culture & Heritage,Community and Leisure ,Premises related Expenditure,Energy Costs,Electricity,28/04/2016,181417,1503.06,Sparsholt College Hampshire
Cultural & Related,Culture & Heritage,Community and Leisure ,Premises related Expenditure,Energy Costs,Gas,28/04/2016,181417,1009.52,Sparsholt College Hampshire
Cultural & Related,Culture & Heritage,Community and Leisure ,Premises related Expenditure,Water Services,Water And Sewerage Charges,28/04/2016,181417,254.34,Sparsholt College Hampshire
Environmental & Regulatory,Waste management,Environmental,Employees,Indirect Employee Expenses,Agency Staff - Waged Posts,28/04/2016,182014,2727.09,365 Supply Ltd
Environmental & Regulatory,Regulatory Services,Housing and Environmental Health ,Supplies & Services,Grants and subscriptions,Capital Grants,21/04/2016,181423,3325.13,Harts Construction Ltd
Environmental & Regulatory,Regulatory Services,Housing and Environmental Health ,Supplies & Services,Grants and subscriptions,Capital Grants,14/04/2016,180786,3335.35,Harts Construction Ltd
Central Services to the Public,Management & Support Services,Finance,Supplies & Services,"Printing, Stationery & General Office Expenses",Postage Costs,14/04/2016,180711,2781.18,Whistl Uk Ltd
Central Services to the Public,Management & Support Services,Environmental,Supplies & Services,"Equipment, Furniture & Materials",Purchase Tools,27/04/2016,181669,2815,Andrew Page Ltd
Environmental & Regulatory,Waste management,Environmental,Employees,Indirect Employee Expenses,Agency Staff - Waged Posts,28/04/2016,181913,2836.25,365 Supply Ltd
Environmental & Regulatory,Regulatory Services,Housing and Environmental Health ,Supplies & Services,Grants and subscriptions,Capital Grants,28/04/2016,182036,3476.5,S & J Building Services (Uk) Ltd
Central Services to the Public,Management & Support Services,Revenues,Supplies & Services,Services,Project Consultancy - Systems,21/04/2016,181039,2925,Advanced Business Solutions
Cultural & Related,Culture & Heritage,Community and Leisure ,Supplies & Services,Miscellaneous Expenses,Booking Of Acts,21/04/2016,181267,2946.34,Sweeney Entertainments
Environmental & Regulatory,Street Cleansing (not chargeable to Highways),Environmental,Supplies & Services,"Equipment, Furniture & Materials",Purchase Equip + Materials,28/04/2016,181426,2968,Streetmaster (South Wales) Ltd
Central Services to the Public,Management & Support Services,IT,Supplies & Services,Communications & Computing,Computer Software,07/04/2016,180127,3000,Idox Software Ltd
"Highways, Roads & Transport",Public Transport,Plan Pol & Transport,Third Party Payments,Transport Operators in Respect of Concessionary Fares,Voluntary Orgs Reimbursement,28/04/2016,181657,3639.3,Andover Neighbourcare
Central Services to the Public,Management & Support Services,Estates and Economic Development ,Third Party Payments,Other Establishments,Private Contractors,28/04/2016,181713,3038.33,H Monfared (Builders) Ltd
Central Services to the Public,Management & Support Services,Finance,Supplies & Services,"Printing, Stationery & General Office Expenses",Postage Costs,14/04/2016,180758,3750,Pitney Bowes Limited
"Highways, Roads & Transport",Highways and roads - maintenance,Plan Pol & Transport,Supplies & Services,"Equipment, Furniture & Materials",Purchase Equip + Materials,07/04/2016,179959,3157.68,Signway Supplies (Datchet Ltd)
Central Services to the Public,Management & Support Services,Environmental,Transport Related Expenditure,Direct Transport Costs,Diesel,28/04/2016,181673,3222.4,Wp Group Limited
Environmental & Regulatory,Regulatory Services,Legal & Democratic,Supplies & Services,"Equipment, Furniture & Materials",Purchase Equip + Materials,28/04/2016,181379,3161.9,Newauto Ltd T/A Mogo (Uk)
Environmental & Regulatory,Regulatory Services,Legal & Democratic,Supplies & Services,"Equipment, Furniture & Materials",Purchase Equip + Materials,28/04/2016,181379,296,Newauto Ltd T/A Mogo (Uk)
Central Services to the Public,Management & Support Services,Environmental,Supplies & Services,"Equipment, Furniture & Materials",Maintenance Equip + Materials,07/04/2016,179970,3500,Maha Uk Ltd
Central Services to the Public,Management & Support Services,Environmental,Transport Related Expenditure,Direct Transport Costs,Diesel,28/04/2016,181273,3315.23,Wp Group Limited
Central Services to the Public,Management & Support Services,Environmental,Transport Related Expenditure,Direct Transport Costs,Red Derv,28/04/2016,181273,364.36,Wp Group Limited
Cultural & Related,Culture & Heritage,Community and Leisure ,Supplies & Services,Miscellaneous Expenses,Booking Of Acts,14/04/2016,180635,3669.88,Bound & Gagged Comedy Ltd
Planning & Development,Planning Policy,Plan Pol & Transport,Supplies & Services,Services,Professional Fees,14/04/2016,180732,4452,Axford Heritage Planning
Central Services to the Public,Management & Support Services,Environmental,Transport Related Expenditure,Direct Transport Costs,Diesel,21/04/2016,181013,3751.65,Wp Group Limited
Planning & Development,Development Control,Planning & Building,Supplies & Services,Miscellaneous Expenses,Planning Appeal Costs,14/04/2016,180415,4625,Cornerstone Barristers
Cultural & Related,Recreation & Sport,Community and Leisure ,Third Party Payments,Other Establishments,ALC Management Contract-TVL,14/04/2016,180199,3916.67,Valley Leisure Ltd
Central Services to the Public,Management & Support Services,Estates and Economic Development ,Third Party Payments,Other Establishments,Private Contractors,28/04/2016,181899,3947,Spheretech Ltd
Central Services to the Public,Management & Support Services,Environmental,Transport Related Expenditure,Direct Transport Costs,Diesel,28/04/2016,181672,3984.75,Wp Group Limited
Central Services to the Public,Management & Support Services,Environmental,Transport Related Expenditure,Direct Transport Costs,Diesel,07/04/2016,179741,4010.88,Wp Group Limited
Central Services to the Public,Management & Support Services,Chief Executive's,Transport Related Expenditure,Contract Hire and Operating Leases,Officer lease cars,28/04/2016,181700,4823.12,Inchcape Fleet Solutions Ltd
Central Services to the Public,Management & Support Services,IT,Supplies & Services,Communications & Computing,Software Maintenance,07/04/2016,179955,4120.12,Softcat Ltd
Planning & Development,Community Development,Community and Leisure ,Supplies & Services,Grants & Subscriptions,Grants,13/04/2016,180646,5000,Hampshire And Isle Of Wight Wildlife Trust
Planning & Development,Community Development,Community and Leisure ,Supplies & Services,Communications & Computing,Computer Software,21/04/2016,180624,4200,Fluent Technology Ltd
Central Services to the Public,Local Land Charges,Legal & Democratic,Supplies & Services,Miscellaneous Expenses,Land Charges Fees,07/04/2016,180188,5265,Hampshire County Council
Central Services to the Public,Elections,Legal & Democratic,Supplies & Services,"Printing, Stationery & General Office Expenses",Postage Costs,14/04/2016,180472,5265.59,Financial Data Management Plc
Environmental & Regulatory,Community Development,Community and Leisure ,Employees,Indirect Employee Expenses,Temporary Staff,21/04/2016,180761,5273,Winchester City Council
Central Services to the Public,Management & Support Services,Estates and Economic Development ,Third Party Payments,Other Establishments,Private Contractors,14/04/2016,180431,4643,Alarms & Electrical (Devizes) Ltd
Central Services to the Public,Management & Support Services,Estates and Economic Development ,Third Party Payments,Other Establishments,Private Contractors,28/04/2016,181683,4662,Waverley Contract Supply Ltd
Central Services to the Public,Management & Support Services,IT,Supplies & Services,Services,Project Consultancy - Systems,21/04/2016,179179,4697.7,Foresight Consulting (Uk) Ltd
Central Services to the Public,Local Tax Collection,Revenues,Supplies & Services,Services,Professional Fees,14/04/2016,180710,4825,Inform Cpi Ltd
"Highways, Roads & Transport",Highways and roads - maintenance,Plan Pol & Transport,Supplies & Services,"Equipment, Furniture & Materials",Purchase Equip + Materials,07/04/2016,179958,4831.5,Signway Supplies (Datchet Ltd)
Cultural & Related,Recreation & Sport,Estates and Economic Development ,Premises related Expenditure,Water Services,Water And Sewerage Charges,14/04/2016,180436,5806.89,Southern Water
"Highways, Roads & Transport",Parking Services,Plan Pol & Transport,Supplies & Services,Services,Professional Fees,21/04/2016,180760,4890.66,Keyline Chartered Security Ltd
Central Services,Corporate & Democratic Core,Corporate & Democratic,Supplies & Services,Grants & Subscriptions,Subscriptions,14/04/2016,179965,5129.52,South East Employers
Cultural & Related,Recreation & Sport,Community and Leisure ,Supplies & Services,Services,Professional Fees,14/04/2016,180631,5440.5,Blake Morgan Llp
Central Services,Corporate & Democratic Core,Corporate & Democratic,Supplies & Services,Communications & Computing,Software Maintenance,14/04/2016,180713,5581.51,Astech Consultants Limited
Housing Services,Housing Benefits ,Revenues,Supplies & Services,Communications & Computing,Software Maintenance,28/04/2016,181716,5600,Northgate Public Services Uk Ltd
Central Services to the Public,Management & Support Services,IT,Support Services,IT,IT Hardware costs,14/04/2016,180749,6399.94,European Electronique
Central Services to the Public,Local Tax Collection,Revenues,Supplies & Services,"Printing, Stationery & General Office Expenses",External Printing,07/04/2016,179621,6611.25,Computastat Group Ltd
Planning & Development,Development Control,Planning & Building,Supplies & Services,Communications & Computing,Computer Software,07/04/2016,180126,6982.5,Idox Software Ltd
Central Services to the Public,Management & Support Services,HR Services,Supplies & Services,Services,External Training Consultants,14/04/2016,180724,7000,Learning Pool Limited
Cultural & Related,Open Spaces,Plan Pol & Transport,Third Party Payments,Private contractors,Main Contractor Costs,21/04/2016,179053,7463.4,Marshalls Street Furniture
Central Services to the Public,Management & Support Services,Estates and Economic Development ,Supplies & Services,Services,Professional Fees,28/04/2016,181715,1100,Local Partnerships
Central Services to the Public,Management & Support Services,Estates and Economic Development ,Supplies & Services,Services,Professional Fees,28/04/2016,181715,1100,Local Partnerships
Cultural & Related,Recreation & Sport,Community and Leisure ,Supplies & Services,Services,Professional Fees,28/04/2016,181715,2150,Local Partnerships
Cultural & Related,Culture & Heritage,Community and Leisure ,Supplies & Services,Services,Professional Fees,28/04/2016,181715,2150,Local Partnerships
Central Services,Corporate & Democratic Core,Corporate & Democratic,Supplies & Services,Services,Professional Fees,28/04/2016,181715,1050,Local Partnerships
Planning & Development,Community Development,Community and Leisure ,Supplies & Services,Grants & Subscriptions,Grants,21/04/2016,181396,9487.16,Sherfield English Recreation Project 2000
Planning & Development,Economic Development,Estates and Economic Development ,Supplies & Services,Grants & Subscriptions,Subscriptions,14/04/2016,180422,10000,Hampshire County Council
Environmental & Regulatory,Waste management,Environmental,Supplies & Services,"Equipment, Furniture & Materials",Purchase Equip + Materials,14/04/2016,180427,8556.8,Mgb Plastics Ltd
Cultural & Related,Open Spaces,Environmental,Supplies & Services,"Equipment, Furniture & Materials",Purchase Equip + Materials,14/04/2016,180438,9910,Lister Wilder
Environmental & Regulatory,Regulatory Services,Estates and Economic Development ,Premises related Expenditure,Water Services,Water And Sewerage Charges,21/04/2016,181079,12494.08,Southern Water
Central Services,Corporate & Democratic Core,Corporate & Democratic,Supplies & Services,Grants & Subscriptions,Subscriptions,21/04/2016,180722,10450,Local Government Association
Central Services to the Public,Management & Support Services,IT,Supplies & Services,Communications & Computing,Computer Software,07/04/2016,179731,11059.14,Phoenix Software Ltd
Central Services to the Public,Management & Support Services,Estates and Economic Development ,Supplies & Services,Services,Professional Fees,14/04/2016,179963,11448.81,Kier Property Developments Ltd.
"Highways, Roads & Transport",Highways and roads - maintenance,Plan Pol & Transport,Supplies & Services,"Equipment, Furniture & Materials",Purchase Equip + Materials,28/04/2016,181904,11482.9,Emily'S Road Marking
Cultural & Related,Open Spaces,Community and Leisure ,Premises related Expenditure,Grounds Maintenance Costs,Non Contract Tree Works,14/04/2016,178531,7982.03,Gristwood & Toms Ltd
Cultural & Related,Recreation & Sport,Community and Leisure ,Premises related Expenditure,Grounds Maintenance Costs,Non Contract Tree Works,14/04/2016,178531,640.26,Gristwood & Toms Ltd
Cultural & Related,Open Spaces,Community and Leisure ,Premises related Expenditure,Grounds Maintenance Costs,Non Contract Tree Works,14/04/2016,178531,1590,Gristwood & Toms Ltd
Cultural & Related,Open Spaces,Community and Leisure ,Premises related Expenditure,Grounds Maintenance Costs,Non Contract Tree Works,14/04/2016,178531,2910,Gristwood & Toms Ltd
Cultural & Related,Open Spaces,Community and Leisure ,Premises related Expenditure,Grounds Maintenance Costs,Non Contract Tree Works,14/04/2016,178531,161.76,Gristwood & Toms Ltd
Central Services to the Public,Management & Support Services,Estates and Economic Development ,Third Party Payments,Private contractors,Main Contractor Costs,21/04/2016,181108,15000,Surfacing Solutions (Uk) Ltd
Cultural & Related,Recreation & Sport,Community and Leisure ,Premises related Expenditure,Repairs Alterations & Maintenance of Buildings,Estates premises costs - AMP,14/04/2016,180465,15000,Proludic Ltd
Central Services to the Public,Management & Support Services,Finance,Employees,Direct Employee Expenses,Shared service staffing costs,07/04/2016,180203,15072.75,Gosport Borough Council
Central Services to the Public,Management & Support Services,Estates and Economic Development ,Third Party Payments,Private contractors,Main Contractor Costs,28/04/2016,181711,16281,Temple Lifts Ltd
Central Services to the Public,Management & Support Services,Estates and Economic Development ,Third Party Payments,Private contractors,Main Contractor Costs,28/04/2016,181712,16281,Temple Lifts Ltd
Environmental & Regulatory,Waste management,Environmental,Supplies & Services,"Equipment, Furniture & Materials",Purchase Equip + Materials,07/04/2016,180056,17266.12,Mgb Plastics Ltd
External Trading Accounts,Property Investments,Estates and Economic Development ,Supplies & Services,Miscellaneous Expenses,Miscellaneous Capital Expenses,07/04/2016,180170,17915.74,Denton Ukmea Llp
Central Services to the Public,Management & Support Services,IT,Support Services,IT,IT Hardware costs,07/04/2016,180073,18230.92,Softcat Ltd
Cultural & Related,Culture & Heritage,Community and Leisure ,Supplies & Services,Grants & Subscriptions,Grants,14/04/2016,180733,23185,King John'S House & Heritage Centre
Planning & Development,Community Development,Community and Leisure ,Supplies & Services,Grants & Subscriptions,Grants,27/04/2016,181850,24000,Andover Lawn Tennis Club
Central Services to the Public,Elections,Legal & Democratic,Supplies & Services,"Printing, Stationery & General Office Expenses",External Printing,14/04/2016,180473,24470.93,Financial Data Management Plc
Central Services to the Public,Management & Support Services,Revenues,Supplies & Services,Communications & Computing,Computer Software,14/04/2016,179588,22501.96,Capita Business Services
Cultural & Related,Recreation & Sport,Community and Leisure ,Premises related Expenditure,Repairs Alterations & Maintenance of Buildings,Estates premises costs - AMP,14/04/2016,180464,25000,Proludic Ltd
Cultural & Related,Recreation & Sport,Community and Leisure ,Premises related Expenditure,Repairs Alterations & Maintenance of Buildings,Estates premises costs - AMP,14/04/2016,180466,30000,Proludic Ltd
Cultural & Related,Recreation & Sport,Community and Leisure ,Third Party Payments,Other Establishments,ALC Management Contract-TVL,14/04/2016,180205,33166.67,Valley Leisure Ltd
Environmental & Regulatory,Regulatory Services,Estates and Economic Development ,Premises related Expenditure,Cleaning and domestic supplies,Contract Cleaning - Non Estates,07/04/2016,179614,13651.61,Friends Life Company Ltd
"Highways, Roads & Transport",Parking Services,Plan Pol & Transport,Supplies & Services,Services,Professional Fees,07/04/2016,179614,35104.14,Friends Life Company Ltd
Cultural & Related,Tourism,Estates and Economic Development ,Supplies & Services,Grants & Subscriptions,Grants,21/04/2016,180193,70387,Tourism South East
